bitfinex/quotes_BTCUSD_20240623
["timestamp","ask_amount","ask_price","bid_price","bid_amount"]
[1719176299272,2.12729219,63831.0,63830.0,0.009339]
[1719176299470,2.20308339,63831.0,63830.0,0.009339]
[1719176300025,1.92584164,63831.0,63830.0,0.009339]
[1719176300690,1.82398339,63831.0,63830.0,0.009339]
[1719176300863,1.83698339,63831.0,63830.0,0.009339]
[1719176301049,1.8419177,63831.0,63830.0,0.009339]
[1719176301256,1.8289177,63831.0,63830.0,0.009339]
[1719176301663,1.7800177,63831.0,63830.0,0.009339]
[1719176301843,1.8429177,63831.0,63830.0,0.009339]
[1719176302045,1.87116828,63831.0,63830.0,0.009339]
[1719176302289,1.88516828,63831.0,63830.0,0.009339]
[1719176302491,1.89867765,63831.0,63830.0,0.009339]
[1719176302846,1.82924662,63831.0,63830.0,0.009339]
[1719176303079,1.89873269,63831.0,63830.0,0.009339]
[1719176303631,1.82924662,63831.0,63830.0,0.009339]
[1719176304061,6.53305957,63831.0,63830.0,0.009339]
[1719176304206,1.73589363,63831.0,63830.0,0.009339]
[1719176304377,1.66640756,63831.0,63830.0,0.009339]
[1719176305431,1.64681596,63831.0,63830.0,0.009339]
[1719176305603,1.71288373,63831.0,63830.0,0.009339]
[1719176306194,1.67656788,63831.0,63830.0,0.009339]
[1719176306406,1.72288206,63831.0,63830.0,0.009339]
[1719176307225,1.67656788,63831.0,63830.0,0.009339]
[1719176307453,1.66656788,63831.0,63830.0,0.009339]
[1719176307624,1.71288163,63831.0,63830.0,0.426539]
[1719176308445,1.64681596,63831.0,63830.0,0.426539]
[1719176308653,1.71286175,63831.0,63830.0,0.41088519]
[1719176308848,1.71286175,63831.0,63830.0,0.45290871]
[1719176310581,1.76847483,63831.0,63830.0,0.45290871]
[1719176311265,1.77847483,63831.0,63830.0,0.45290871]
[1719176311449,1.73216042,63831.0,63830.0,0.45290871]
[1719176311648,1.70313353,63831.0,63830.0,0.45290871]
[1719176311907,1.72291382,63831.0,63830.0,0.41088519]
[1719176312106,1.6770274,63831.0,63830.0,0.41088519]
[1719176312306,1.7793632,63831.0,63830.0,0.41088519]
[1719176313445,1.73304588,63831.0,63830.0,0.41088519]
[1719176314764,1.65681596,63831.0,63830.0,0.41088519]
[1719176314907,1.73300638,63831.0,63830.0,0.41088519]
[1719176316111,1.73300638,63831.0,63830.0,0.45290871]
[1719176316524,1.79249655,63831.0,63830.0,0.45290871]
[1719176317680,1.79249655,63831.0,63830.0,0.41088519]
[1719176317881,1.79306738,63831.0,63830.0,0.41182019]
[1719176318225,1.7930894,63831.0,63830.0,0.41182019]
[1719176318420,1.7401894,63831.0,63830.0,0.41182019]
[1719176318664,1.72357721,63831.0,63830.0,0.41182019]
[1719176319692,1.72357721,63831.0,63830.0,0.45393721]
[1719176320401,1.81626013,63831.0,63830.0,0.41182019]
[1719176320778,1.82626013,63831.0,63830.0,0.41182019]
[1719176321183,1.82762016,63831.0,63830.0,0.23462019]
[1719176321591,1.73487171,63831.0,63830.0,0.23462019]
[1719176321791,1.82759794,63831.0,63830.0,0.23462019]
[1719176322342,1.73487171,63831.0,63830.0,0.23462019]
[1719176322747,1.72489716,63831.0,63830.0,0.23462019]
[1719176323421,1.84080495,63831.0,63830.0,0.23462019]
[1719176324099,1.65681596,63831.0,63830.0,0.23462019]
[1719176324298,1.85087859,63831.0,63830.0,0.23462019]
[1719176324922,2.15061117,63831.0,63830.0,0.000935]
[1719176325101,2.76905343,63831.0,63830.0,0.000935]
[1719176325319,2.61649929,63831.0,63830.0,0.000935]
[1719176325941,2.42389929,63831.0,63830.0,0.000935]
[1719176326135,2.20079929,63831.0,63830.0,0.000935]
[1719176327016,2.14789929,63831.0,63830.0,0.000935]
[1719176327153,2.12270408,63831.0,63830.0,0.000935]
[1719176327352,2.20069179,63831.0,63830.0,0.000935]
[1719176327992,1.87736479,63831.0,63830.0,0.000935]
[1719176328324,1.88736479,63831.0,63830.0,0.000935]
[1719176330344,2.02348365,63831.0,63830.0,0.000935]
[1719176330757,1.94537708,63831.0,63830.0,0.000935]
[1719176330962,2.02348362,63831.0,63830.0,0.000935]
[1719176331610,2.16280635,63831.0,63830.0,0.000935]
[1719176332051,2.02348362,63831.0,63830.0,0.000935]
[1719176332839,2.17603776,63831.0,63830.0,0.000935]
[1719176332981,2.46673778,63831.0,63830.0,0.000935]
[1719176333473,2.36949193,63831.0,63830.0,0.000935]
[1719176333620,2.68281893,63831.0,63830.0,0.000935]
[1719176334435,2.83963538,63831.0,63830.0,0.000935]
[1719176335754,2.68281893,63831.0,63830.0,0.000935]
[1719176336428,2.68381181,63831.0,63830.0,0.000935]
[1719176337363,2.73125767,63831.0,63830.0,0.000935]
[1719176337562,2.95515767,63831.0,63830.0,0.000935]
[1719176337992,2.83269987,63831.0,63830.0,0.000935]
[1719176338150,2.83270034,63831.0,63830.0,0.000935]
[1719176338697,2.83270034,63831.0,63826.0,0.00935]
[1719176338698,1.420061,63827.0,63826.0,0.00935]
[1719176338861,3.15389271,63827.0,63826.0,0.00935]
[1719176339020,3.4747351,63827.0,63826.0,0.00935]
[1719176339445,3.39478151,63827.0,63826.0,0.00935]
[1719176339690,3.39478151,63827.0,63819.0,0.00935]
[1719176339691,1.825814,63820.0,63819.0,0.00935]
[1719176339896,3.12479527,63820.0,63819.0,0.00935]
[1719176340022,3.44563441,63820.0,63819.0,0.00935]
[1719176340586,3.43474441,63820.0,63819.0,0.00935]
[1719176340788,2.98990841,63820.0,63819.0,0.00935]
[1719176340989,2.46007041,63820.0,63819.0,0.00935]
[1719176341161,2.42777903,63820.0,63819.0,0.00935]
[1719176341525,2.44177903,63820.0,63819.0,0.00935]
[1719176341996,2.44173695,63820.0,63819.0,0.00935]
[1719176342191,2.45373695,63820.0,63819.0,0.00935]
[1719176342567,2.44173695,63820.0,63819.0,0.00935]
[1719176343374,2.42773695,63820.0,63819.0,0.00935]
[1719176343772,2.44173695,63820.0,63819.0,0.00935]
[1719176344920,2.36041212,63820.0,63819.0,0.00935]
[1719176345216,2.44193185,63820.0,63819.0,0.00935]
[1719176345447,2.45593185,63820.0,63819.0,0.00935]
[1719176346505,2.59523908,63820.0,63819.0,0.00935]
[1719176347108,2.85783185,63820.0,63819.0,0.00935]
[1719176347521,3.84502985,63820.0,63819.0,0.00935]
[1719176347920,3.76351012,63820.0,63819.0,0.00935]
[1719176348123,3.84513191,63820.0,63819.0,0.00935]
[1719176348385,3.63318091,63820.0,63819.0,0.00935]
[1719176348536,3.29859791,63820.0,63819.0,0.00935]
[1719176348735,2.8041651,63820.0,63819.0,0.00935]
[1719176349120,2.7214651,63820.0,63819.0,0.00935]
[1719176349322,2.6685651,63820.0,63819.0,0.00935]
[1719176349537,2.7214651,63820.0,63819.0,0.00935]
[1719176349741,2.72159239,63820.0,63819.0,0.00935]
[1719176350864,2.51229166,63820.0,63819.0,0.00935]
[1719176351072,2.51227411,63820.0,63819.0,0.00935]
[1719176351475,2.44957411,63820.0,63819.0,0.00935]
[1719176352290,2.46804965,63820.0,63819.0,0.00935]
[1719176354021,2.46905396,63820.0,63819.0,0.00935]
[1719176354214,2.46905397,63820.0,63819.0,0.00935]
[1719176355457,1.42009344,63817.0,63816.0,0.000553]
[1719176355680,2.07290775,63817.0,63816.0,0.000553]
[1719176355886,2.08041121,63817.0,63816.0,0.000553]
[1719176356392,2.05287121,63817.0,63816.0,0.000553]
[1719176356660,1.99017121,63817.0,63816.0,0.000553]
[1719176357132,1.93097496,63817.0,63816.0,0.000553]
[1719176357398,1.92746244,63817.0,63816.0,0.0435233]
[1719176357618,1.35044783,63817.0,63816.0,0.45148012]
[1719176357859,1.33889066,63817.0,63816.0,0.40850982]
[1719176358060,1.33889066,63817.0,63816.0,0.408053]
[1719176358061,1.29330116,63817.0,63816.0,0.408053]
[1719176358166,1.29330116,63817.0,63816.0,0.44983898]
[1719176358167,1.30730116,63817.0,63816.0,0.44983898]
[1719176358376,1.25440116,63817.0,63816.0,0.4502958]
[1719176358577,1.34170673,63817.0,63816.0,0.44983898]
[1719176358781,1.32770673,63817.0,63816.0,0.4502958]
[1719176359036,1.28280673,63817.0,63816.0,0.4502958]
[1719176359247,1.29380673,63817.0,63816.0,0.4502958]
[1719176359464,0.82300516,63817.0,63816.0,0.4502958]
[1719176359667,0.86790516,63817.0,63816.0,0.4502958]
[1719176359866,0.87290516,63817.0,63816.0,0.4502958]
[1719176360314,0.8733002,63817.0,63816.0,0.4502958]
[1719176361066,0.8683002,63817.0,63816.0,0.4502958]
[1719176361264,0.8763002,63817.0,63816.0,0.4502958]
[1719176361860,0.8823002,63817.0,63816.0,0.4502958]
[1719176362266,0.8803002,63817.0,63816.0,0.4502958]
[1719176362470,0.8813002,63817.0,63816.0,0.4502958]
[1719176362702,0.8693002,63817.0,63816.0,0.4502958]
[1719176363106,0.86904032,63817.0,63816.0,0.4502958]
[1719176363299,0.87304032,63817.0,63816.0,0.4502958]
[1719176364335,0.82014032,63817.0,63816.0,0.4502958]
[1719176364561,0.55964432,63817.0,63816.0,0.4502958]
[1719176366160,0.53549746,63817.0,63816.0,0.4502958]
[1719176366369,0.55948249,63817.0,63816.0,0.4502958]
[1719176368854,0.50658249,63817.0,63816.0,0.4502958]
[1719176369078,0.55948249,63817.0,63816.0,0.4502958]
[1719176369279,0.53549746,63817.0,63816.0,0.4502958]
[1719176369506,0.55950565,63817.0,63816.0,0.4502958]
[1719176370337,0.53549746,63817.0,63816.0,0.4502958]
[1719176370465,0.55958537,63817.0,63816.0,0.4502958]
[1719176372367,0.55952605,63817.0,63816.0,0.4502958]
[1719176373792,0.50662605,63817.0,63816.0,0.4502958]
[1719176374027,0.55952605,63817.0,63816.0,0.4502958]
[1719176375400,0.53549746,63817.0,63816.0,0.4502958]
[1719176375660,0.55956411,63817.0,63816.0,0.4502958]
[1719176375908,0.48259746,63817.0,63816.0,0.4502958]
[1719176376204,0.06540346,63817.0,63816.0,0.4502958]
[1719176376434,0.01250346,63817.0,63816.0,0.60285692]
[1719176376663,0.005,63817.0,63816.0,0.60285692]
[1719176376880,0.01257738,63817.0,63816.0,0.60285692]
[1719176377113,0.01257738,63817.0,63816.0,0.61285692]
[1719176377328,0.01157738,63817.0,63816.0,0.60285692]
[1719176377549,0.01157738,63817.0,63816.0,1.08295792]
[1719176377550,0.00757738,63817.0,63816.0,1.08295792]
[1719176377772,0.00857738,63817.0,63816.0,1.08295792]
[1719176378016,0.002,63817.0,63816.0,1.08395792]
[1719176378234,0.0529,63821.0,63820.0,0.20045682]
[1719176378468,0.06049195,63821.0,63820.0,0.90030243]
[1719176378944,0.08365777,63821.0,63820.0,0.90030243]
[1719176379163,0.24034577,63821.0,63820.0,0.90030243]
[1719176379383,0.08365777,63821.0,63820.0,0.90030243]
[1719176380861,0.08465777,63821.0,63820.0,0.90130243]
[1719176381543,0.02825348,63821.0,63820.0,0.90130243]
[1719176381781,0.08215348,63821.0,63820.0,0.90130243]
[1719176382237,0.04885348,63821.0,63820.0,0.90130243]
[1719176383869,0.04885348,63821.0,63820.0,0.90084561]
[1719176384186,0.04885348,63821.0,63820.0,0.90130243]
[1719176384187,0.0539,63821.0,63820.0,0.90130243]
[1719176388706,0.210588,63821.0,63820.0,0.90130243]
[1719176392213,0.22976501,63821.0,63820.0,0.90130243]
[1719176393915,0.22975593,63821.0,63820.0,0.90130243]
[1719176394367,0.210588,63821.0,63820.0,0.90130243]
[1719176394677,0.22975593,63821.0,63820.0,0.90130243]
[1719176394878,0.07306793,63821.0,63820.0,0.90130243]
[1719176396213,0.22975593,63821.0,63820.0,0.90130243]
[1719176397062,0.22974586,63821.0,63820.0,0.90130243]
[1719176397269,0.0529,63821.0,63820.0,0.90130243]
[1719176397954,0.156685,63823.0,63821.0,0.00045682]
[1719176398194,0.156685,63823.0,63822.0,0.04693878]
[1719176398429,0.209585,63823.0,63822.0,0.04693878]
[1719176399008,0.156681,63824.0,63823.0,0.00045682]
[1719176399261,0.156681,63824.0,63823.0,0.4407428]
[1719176399488,0.209581,63824.0,63823.0,0.4407428]
[1719176400441,0.33201971,63830.0,63829.0,0.00045682]
[1719176400442,0.04643736,63830.0,63829.0,0.00045682]
[1719176400654,0.47084,63831.0,63830.0,0.00045682]
[1719176400855,0.52374,63831.0,63830.0,0.19479352]
[1719176401731,0.52374,63831.0,63830.0,0.01859352]
[1719176401732,0.837067,63831.0,63830.0,0.01859352]
[1719176401943,1.150394,63831.0,63830.0,0.0181367]
[1719176402146,0.470034,63825.0,63824.0,0.00045682]
[1719176402390,0.470034,63825.0,63824.0,0.0738111]
[1719176402618,0.522934,63825.0,63824.0,0.0738111]
[1719176402862,0.470034,63825.0,63824.0,0.0738111]
[1719176403068,0.522934,63825.0,63824.0,0.0738111]
[1719176403456,0.679612,63825.0,63823.0,0.04178598]
[1719176403654,0.470094,63817.0,63816.0,0.001488]
[1719176403876,1.24849,63817.0,63816.0,0.001488]
[1719176404058,1.60834805,63817.0,63816.0,0.001488]
[1719176404264,1.60834491,63817.0,63816.0,0.001488]
[1719176404436,1.561886,63817.0,63816.0,0.001488]
[1719176405361,2.10168631,63817.0,63816.0,0.001488]
[1719176405616,2.37478168,63817.0,63816.0,0.001488]
[1719176405818,2.25862832,63817.0,63816.0,0.001488]
[1719176406154,2.26843976,63817.0,63816.0,0.002488]
[1719176406405,2.25962832,63817.0,63816.0,0.001488]
[1719176406772,2.28143976,63817.0,63816.0,0.001488]
[1719176407014,2.26843976,63817.0,63816.0,0.001488]
[1719176407166,2.45156879,63817.0,63816.0,0.001488]
[1719176407378,2.45156879,63817.0,63803.0,0.48455]
[1719176407379,1.42020144,63812.0,63803.0,0.48455]
[1719176407581,0.89239944,63804.0,63803.0,0.48455]
[1719176407806,1.69297391,63804.0,63803.0,0.058744]
[1719176408123,1.87482419,63804.0,63803.0,0.00935]
[1719176408327,1.88641568,63804.0,63803.0,0.00935]
[1719176408660,1.79645569,63804.0,63803.0,0.00935]
[1719176408770,2.10991469,63804.0,63803.0,0.00935]
[1719176408976,2.11091469,63804.0,63803.0,0.01035]
[1719176409178,2.00729458,63804.0,63803.0,0.00935]
[1719176409381,2.07686441,63804.0,63803.0,0.00935]
[1719176409578,2.08086441,63804.0,63803.0,0.00935]
[1719176410224,2.01129458,63804.0,63803.0,0.00935]
[1719176410635,0.91907658,63804.0,63803.0,0.00980682]
[1719176410847,1.05247658,63804.0,63803.0,0.00980682]
[1719176411231,1.021047,63804.0,63803.0,0.00980682]
[1719176411428,1.021047,63804.0,63803.0,0.0546265]
[1719176411429,1.08282528,63804.0,63803.0,0.0546265]
[1719176411827,1.05193628,63804.0,63803.0,0.0546265]
[1719176412036,1.08282502,63804.0,63803.0,0.0546265]
[1719176413074,1.08297484,63804.0,63803.0,0.0546265]
[1719176414302,0.95057484,63804.0,63803.0,0.0546265]
[1719176414525,1.08310898,63804.0,63803.0,0.0546265]
[1719176415703,1.09335785,63804.0,63803.0,0.0546265]
[1719176417511,1.09381471,63804.0,63803.0,0.0546265]
[1719176419713,1.40727371,63804.0,63803.0,0.0546265]
[1719176420615,1.37564415,63804.0,63803.0,0.0546265]
[1719176420819,1.4071502,63804.0,63803.0,0.0546265]
[1719176420994,1.37564415,63804.0,63803.0,0.0546265]
[1719176421230,1.40714853,63804.0,63803.0,0.0546265]
[1719176421406,1.90200753,63804.0,63803.0,0.00935]
[1719176421688,1.90200753,63804.0,63803.0,0.00980682]
[1719176421794,1.90200753,63804.0,63803.0,0.00935]
[1719176422396,2.54575453,63804.0,63803.0,0.00935]
[1719176423599,2.54608632,63804.0,63803.0,0.00935]
[1719176424006,2.41368632,63804.0,63803.0,0.00935]
[1719176424298,2.54608632,63804.0,63803.0,0.00935]
[1719176425305,2.53324432,63804.0,63803.0,0.00935]
[1719176425504,2.52321232,63804.0,63803.0,0.00935]
[1719176425912,2.50321232,63804.0,63803.0,0.00935]
[1719176426359,2.36065532,63804.0,63803.0,0.00935]
[1719176426562,2.36065532,63804.0,63803.0,0.00980682]
[1719176426563,2.37691915,63804.0,63803.0,0.00980682]
[1719176426781,2.25842144,63804.0,63803.0,0.00980682]
[1719176426897,2.23842144,63804.0,63803.0,0.00935]
[1719176427096,2.20753216,63804.0,63803.0,0.00935]
[1719176427349,2.20753216,63804.0,63803.0,0.00961826]
[1719176427517,1.87150916,63804.0,63803.0,0.00935]
[1719176427924,1.87150916,63804.0,63803.0,0.00961826]
[1719176428145,1.87150916,63804.0,63803.0,0.00935]
[1719176428533,1.87150916,63804.0,63803.0,0.00980682]
[1719176429219,1.87150916,63804.0,63803.0,0.00935]
[1719176429431,1.83961387,63804.0,63803.0,0.00935]
[1719176429795,1.87184231,63804.0,63803.0,0.00935]
[1719176429956,1.83961387,63804.0,63803.0,0.00935]
[1719176430161,1.87184231,63804.0,63803.0,0.00935]
[1719176431225,1.83961387,63804.0,63803.0,0.00935]
[1719176431443,1.87165037,63804.0,63803.0,0.00935]
[1719176431867,1.87165037,63804.0,63803.0,0.00980682]
[1719176432368,1.71492137,63804.0,63803.0,0.00980682]
[1719176432594,1.68288487,63804.0,63803.0,0.00980682]
[1719176432827,1.68288487,63804.0,63803.0,0.00935]
[1719176432828,1.71514565,63804.0,63803.0,0.00935]
[1719176433483,1.71514565,63804.0,63803.0,0.00980682]
[1719176433905,1.87187465,63804.0,63803.0,0.00980682]
[1719176434105,1.87187465,63804.0,63803.0,0.0354065]
[1719176434255,1.93932432,63804.0,63803.0,0.0354065]
[1719176434460,1.93932432,63804.0,63803.0,0.03494968]
[1719176434657,1.85992432,63804.0,63803.0,0.0354065]
[1719176434872,1.85935679,63804.0,63803.0,0.03494968]
[1719176435066,1.85935679,63804.0,63803.0,0.0354065]
[1719176435449,1.99229634,63804.0,63803.0,0.03494968]
[1719176435649,2.09205276,63804.0,63803.0,0.03494968]
[1719176436794,2.09205276,63804.0,63803.0,0.00935]
[1719176437018,2.02181676,63804.0,63803.0,0.00935]
[1719176437739,2.02181676,63804.0,63803.0,0.00980682]
[1719176437740,1.31154376,63804.0,63803.0,0.00980682]
[1719176437945,1.05108476,63804.0,63803.0,0.42780682]
[1719176438217,0.98359658,63804.0,63803.0,0.4715265]
[1719176438419,0.95132834,63804.0,63803.0,0.4715265]
[1719176439073,0.98406877,63804.0,63803.0,0.4715265]
[1719176439313,1.01680921,63804.0,63803.0,0.4715265]
[1719176439513,0.98406878,63804.0,63803.0,0.4715265]
[1719176442684,0.93106878,63804.0,63803.0,0.4715265]
[1719176442924,0.67060978,63804.0,63803.0,0.4715265]
[1719176444800,0.67268628,63804.0,63803.0,0.4715265]
[1719176445660,0.67353628,63804.0,63803.0,0.4715265]
[1719176447648,0.63871934,63804.0,63803.0,0.4715265]
[1719176447912,0.67379205,63804.0,63803.0,0.4815265]
[1719176448143,0.67379205,63804.0,63803.0,0.4715265]
[1719176448144,0.67323665,63804.0,63803.0,0.4715265]
[1719176448382,0.67023665,63804.0,63803.0,0.4715265]
[1719176448625,0.67423665,63804.0,63803.0,0.4715265]
[1719176448837,0.67023665,63804.0,63803.0,0.4715265]
[1719176449276,0.63771934,63804.0,63803.0,0.4715265]
[1719176449499,0.67338376,63804.0,63803.0,0.4715265]
[1719176450316,0.74302171,63804.0,63803.0,0.4715265]
[1719176450727,0.74318503,63804.0,63803.0,0.4715265]
[1719176451220,0.7664054,63804.0,63803.0,0.4715265]
[1719176453271,0.67352393,63804.0,63803.0,0.4715265]
[1719176453689,0.67354447,63804.0,63803.0,0.4715265]
[1719176454260,0.98700347,63804.0,63803.0,0.4715265]
[1719176454466,1.10319687,63804.0,63803.0,0.4715265]
[1719176455152,0.98700347,63804.0,63803.0,0.4715265]
[1719176455750,1.10319687,63804.0,63803.0,0.4715265]
[1719176456301,1.05019687,63804.0,63803.0,0.4715265]
[1719176456516,1.06637174,63804.0,63803.0,0.4715265]
[1719176456681,1.10112158,63804.0,63803.0,0.4715265]
[1719176457242,1.10121022,63804.0,63803.0,0.4715265]
[1719176457566,1.17114628,63804.0,63803.0,0.4715265]
[1719176459783,1.17173993,63804.0,63803.0,0.4715265]
[1719176460685,1.17173993,63804.0,63803.0,0.4815265]
[1719176461048,1.17173993,63804.0,63803.0,0.4715265]
[1719176461786,0.23566046,63804.0,63803.0,0.63408762]
[1719176461991,0.05072002,63804.0,63803.0,1.6953928]
[1719176462203,0.11622425,63811.0,63810.0,0.43888856]
[1719176462488,0.0994897,63815.0,63814.0,0.43915682]
[1719176462611,0.0464897,63816.0,63815.0,0.43888856]
[1719176462815,0.0994897,63816.0,63815.0,0.4828765]
[1719176463084,0.053,63816.0,63815.0,0.4828765]
[1719176463229,0.156693,63819.0,63816.0,0.00045682]
[1719176463403,0.2708733,63817.0,63816.0,0.73445717]
[1719176464445,0.2708733,63817.0,63816.0,1.51382029]
[1719176464446,0.2218733,63817.0,63816.0,1.51382029]
[1719176464636,0.2218733,63817.0,63816.0,1.87052029]
[1719176464885,0.2218733,63817.0,63816.0,2.18392129]
[1719176464886,0.2228733,63817.0,63816.0,2.18392129]
[1719176465314,0.2228733,63817.0,63816.0,1.98392129]
[1719176465511,0.2218733,63817.0,63816.0,2.18392129]
[1719176465890,0.2178733,63817.0,63816.0,2.18392129]
[1719176466092,0.2178733,63817.0,63816.0,2.18992129]
[1719176466379,0.21819478,63817.0,63816.0,2.18992129]
[1719176466758,0.21871513,63817.0,63816.0,2.18992129]
[1719176467770,0.21771513,63817.0,63816.0,2.18992129]
[1719176468079,0.21871513,63817.0,63816.0,2.18992129]
[1719176469465,0.21871513,63817.0,63816.0,2.35502129]
[1719176469859,0.21091513,63817.0,63816.0,2.35502129]
[1719176471397,0.00085,63831.0,63816.0,2.35502129]
[1719176471398,0.00085,63831.0,63830.0,0.56018656]
[1719176471599,0.00085,63831.0,63830.0,1.14171594]
[1719176472640,0.00085,63831.0,63830.0,1.45504794]
[1719176473693,0.00085,63831.0,63830.0,1.14171594]
[1719176474524,0.00285,63831.0,63830.0,1.14571594]
[1719176474737,0.00285,63831.0,63830.0,1.18943562]
[1719176476558,0.00085,63846.0,63845.0,0.99360182]
[1719176476759,0.00085,63846.0,63845.0,0.95494382]
[1719176477164,0.00085,63846.0,63845.0,1.26820182]
[1719176477365,0.00085,63846.0,63845.0,1.51210182]
[1719176477593,0.00085,63846.0,63845.0,1.19884382]
[1719176477922,0.00985,63846.0,63845.0,1.68607532]
[1719176478726,0.00985,63846.0,63845.0,1.88607532]
[1719176479102,0.00985,63846.0,63845.0,2.19933332]
[1719176479398,0.00885,63846.0,63845.0,2.19533332]
[1719176479568,0.00985,63846.0,63845.0,2.20633332]
[1719176479793,0.00185,63846.0,63845.0,2.20633332]
[1719176480001,0.00085,63846.0,63845.0,2.20533332]
[1719176480133,0.00285,63846.0,63845.0,2.01833332]
[1719176480336,0.00285,63846.0,63845.0,2.21833332]
[1719176480562,0.00085,63846.0,63845.0,2.19533332]
[1719176480771,0.00185,63846.0,63845.0,2.21933332]
[1719176481001,0.00185,63846.0,63845.0,2.20533332]
[1719176481875,0.00185,63846.0,63845.0,2.00533332]
[1719176482689,0.00185,63846.0,63845.0,2.20533332]
[1719176483104,0.00285,63846.0,63845.0,2.21933332]
[1719176484139,0.00185,63846.0,63845.0,2.00933332]
[1719176484345,0.00185,63846.0,63845.0,1.70234932]
[1719176484619,0.00285,63846.0,63845.0,1.39681732]
[1719176484993,0.472729,63846.0,63845.0,0.22845682]
[1719176485204,0.472729,63846.0,63845.0,0.02845682]
[1719176485205,0.892529,63846.0,63845.0,0.02845682]
[1719176485356,0.891529,63846.0,63845.0,0.01445682]
[1719176486024,0.00185,63846.0,63845.0,0.02445682]
[1719176486224,0.00085,63846.0,63845.0,0.43135009]
[1719176486433,0.313197,63858.0,63845.0,0.43135009]
[1719176486434,0.28625,63857.0,63856.0,0.00045682]
[1719176486560,0.22965,63857.0,63856.0,0.00045682]
[1719176486762,0.1,63857.0,63856.0,0.00045682]
[1719176487445,0.256599,63857.0,63856.0,0.00045682]
[1719176488342,0.671681,63861.0,63859.0,0.00045682]
[1719176488343,0.157442,63860.0,63859.0,0.00045682]
[1719176488499,0.00085,63860.0,63859.0,0.15705082]
[1719176488702,0.10085,63860.0,63859.0,0.02953461]
[1719176489382,0.10085,63860.0,63859.0,0.03953461]
[1719176489712,0.00085,63860.0,63859.0,0.03953461]
[1719176490967,0.00085,63860.0,63859.0,0.04353461]
[1719176491513,0.00085,63860.0,63859.0,0.03453461]
[1719176492322,0.00085,63860.0,63859.0,0.04453461]
[1719176492756,0.00085,63860.0,63859.0,0.03453461]
[1719176492953,0.00085,63860.0,63859.0,0.03766618]
[1719176493158,0.00085,63860.0,63859.0,0.18709573]
[1719176495415,0.00085,63860.0,63859.0,0.19709573]
[1719176496721,0.00085,63860.0,63859.0,0.18709573]
[1719176499941,0.00085,63860.0,63859.0,0.19709573]
[1719176500199,0.00085,63860.0,63859.0,0.18709573]
[1719176502763,0.00085,63860.0,63859.0,0.19709573]
[1719176502997,0.00085,63860.0,63859.0,0.18709573]
[1719176503483,0.00085,63860.0,63859.0,0.19709573]
[1719176503888,0.157442,63860.0,63859.0,0.18709573]
[1719176504241,0.257442,63860.0,63859.0,0.18709573]
[1719176506764,0.310242,63860.0,63859.0,0.18709573]
[1719176507365,0.10085,63860.0,63859.0,0.19709573]
[1719176507571,0.10085,63860.0,63859.0,0.61769573]
[1719176507572,0.00085,63860.0,63859.0,0.61769573]
[1719176507774,0.00085,63860.0,63859.0,0.69769573]
[1719176508696,0.00085,63860.0,63859.0,0.89769573]
[1719176510140,0.00085,63860.0,63859.0,1.05428973]
[1719176510541,0.00085,63860.0,63859.0,1.36747873]
[1719176510913,0.00085,63860.0,63859.0,1.88066773]
[1719176511439,0.00085,63860.0,63859.0,1.68066773]
[1719176512244,0.00085,63860.0,63859.0,1.67966773]
[1719176512451,0.00185,63860.0,63859.0,1.69266773]
[1719176512653,0.00185,63860.0,63859.0,1.68866773]
[1719176513063,0.00285,63860.0,63859.0,1.70066773]
[1719176513283,0.00185,63860.0,63859.0,1.68766773]
[1719176513491,0.00085,63860.0,63859.0,1.67566773]
[1719176513692,0.00185,63860.0,63859.0,1.68866773]
[1719176513867,0.00185,63860.0,63859.0,1.70066773]
[1719176513868,0.00285,63860.0,63859.0,1.70066773]
[1719176519955,0.00128406,63860.0,63859.0,1.70066773]
[1719176520411,0.00128406,63860.0,63859.0,2.31385673]
[1719176520621,0.00128406,63860.0,63859.0,2.91534573]
[1719176521896,0.00128406,63860.0,63859.0,2.89034573]
[1719176521897,0.00028406,63860.0,63859.0,2.89034573]
[1719176522100,0.0085,63868.0,63867.0,1.97208182]
[1719176522306,0.0085,63868.0,63867.0,2.185775]
[1719176523484,0.0095,63868.0,63867.0,2.213775]
[1719176523708,0.0095,63868.0,63867.0,2.413775]
[1719176524666,0.0095,63868.0,63867.0,2.213775]
[1719176524818,0.0095,63868.0,63867.0,2.413775]
[1719176525248,0.0095,63868.0,63867.0,2.213775]
[1719176525449,0.0095,63868.0,63867.0,2.413775]
[1719176525648,0.0095,63868.0,63867.0,2.213775]
[1719176526670,0.0095,63868.0,63867.0,2.413775]
[1719176527932,0.0095,63868.0,63867.0,2.513775]
[1719176528821,0.0095,63868.0,63867.0,2.926925]
[1719176529025,0.0095,63868.0,63867.0,3.363075]
[1719176529446,0.0095,63868.0,63867.0,3.049925]
[1719176529867,0.0085,63868.0,63867.0,3.021925]
[1719176530080,0.0085,63868.0,63867.0,3.035925]
[1719176530290,0.0085,63868.0,63867.0,3.049925]
[1719176530698,0.0085,63868.0,63867.0,3.035925]
[1719176531454,0.0085,63868.0,63867.0,3.021925]
[1719176531878,0.0085,63868.0,63867.0,3.035925]
[1719176532310,0.0085,63868.0,63867.0,3.049925]
[1719176532457,0.0085,63868.0,63867.0,3.035925]
[1719176532860,0.0085,63868.0,63867.0,3.049925]
[1719176541203,0.0085,63868.0,63867.0,2.736775]
[1719176545090,0.0085,63868.0,63867.0,2.213775]
[1719176545306,0.2991,63868.0,63867.0,0.678725]
[1719176545522,0.2991,63868.0,63867.0,0.10845682]
[1719176545523,0.645472,63868.0,63867.0,0.10845682]
[1719176545730,0.958617,63868.0,63867.0,0.10845682]
[1719176546176,0.98477265,63868.0,63867.0,0.10845682]
[1719176546599,0.97977265,63868.0,63867.0,0.10845682]
[1719176546815,0.92697265,63868.0,63867.0,0.1193025]
[1719176547015,0.92697265,63868.0,63867.0,0.1053025]
[1719176547225,0.92697265,63868.0,63867.0,0.0913025]
[1719176547433,0.92690139,63868.0,63867.0,0.0913025]
[1719176547639,0.92690139,63868.0,63867.0,0.0983025]
[1719176548036,0.92690139,63868.0,63867.0,0.0913025]
[1719176548392,0.92690139,63868.0,63867.0,0.0943025]
[1719176548596,0.92690139,63868.0,63867.0,0.1003025]
[1719176549804,0.45718439,63868.0,63867.0,0.1003025]
[1719176549947,0.45718439,63868.0,63867.0,0.0973025]
[1719176550162,0.02958439,63868.0,63867.0,0.40643862]
[1719176550371,0.0035,63868.0,63867.0,0.72358862]
[1719176550586,0.0035,63868.0,63867.0,0.71358862]
[1719176550827,0.0035,63868.0,63867.0,0.71458862]
[1719176551285,0.0035,63868.0,63867.0,0.71358862]